fUST/lending_fUST_20260417
["ID","MTS","AMOUNT","RATE_DAILY","PERIOD"]
[420656931,1776436238624,-184.0,7.238e-05,2]
[420656932,1776436238634,-441.0,7.238e-05,2]
[420656933,1776436238643,-287.8601952,7.481e-05,2]
[420656934,1776436238651,-8059.66254374,7.49e-05,2]
[420656935,1776436238660,-500.0,7.561e-05,2]
[420656936,1776436238670,-2230.315306,7.597e-05,2]
[420656937,1776436238679,-160.0,7.738e-05,2]
[420656938,1776436238688,-729.933,7.744e-05,2]
[420656939,1776436238696,-500.0,7.839e-05,2]
[420656940,1776436238706,-500.0,7.839e-05,2]
[420656941,1776436238715,-500.0,7.839e-05,2]
[420656942,1776436238724,-500.0,7.839e-05,2]
[420656943,1776436238733,-500.0,7.839e-05,2]
[420656944,1776436238742,-500.0,7.839e-05,2]
[420656945,1776436238752,-500.0,7.839e-05,2]
[420656946,1776436238761,-500.0,7.839e-05,2]
[420656947,1776436238771,-500.0,7.839e-05,2]
[420656948,1776436238780,-500.0,7.839e-05,2]
[420656949,1776436238789,-500.0,7.839e-05,2]
[420656950,1776436238799,-500.0,7.839e-05,2]
[420656951,1776436238808,-500.0,7.839e-05,2]
[420656952,1776436238817,-500.0,7.839e-05,2]
[420656953,1776436238826,-500.0,7.839e-05,2]
[420656954,1776436238835,-354.24100947,7.839e-05,2]
[420656955,1776436238844,-500.0,7.839e-05,2]
[420656956,1776436238854,-500.0,7.839e-05,2]
[420656957,1776436238863,-500.0,7.839e-05,2]
[420656958,1776436238873,-418.83279323,7.839e-05,2]
[420656959,1776436238882,-500.0,7.839e-05,2]
[420656960,1776436238891,-333.02217873,7.839e-05,2]
[420656961,1776436238900,-500.0,7.839e-05,2]
[420656962,1776436238909,-500.0,7.839e-05,2]
[420656963,1776436238918,-500.0,7.839e-05,2]
[420656964,1776436238927,-500.0,7.839e-05,2]
[420656965,1776436238936,-500.0,7.839e-05,2]
[420656966,1776436238946,-500.0,7.839e-05,2]
[420656967,1776436238955,-500.0,7.839e-05,2]
[420656968,1776436238965,-500.0,7.839e-05,2]
[420656969,1776436238974,-500.0,7.839e-05,2]
[420656970,1776436238983,-500.0,7.839e-05,2]
[420656971,1776436238992,-500.0,7.839e-05,2]
[420656972,1776436239001,-500.0,7.839e-05,2]
[420656973,1776436239012,-257.19591654,7.839e-05,2]
[420656974,1776436239030,-500.0,7.839e-05,2]
[420656975,1776436239046,-500.0,7.839e-05,2]
[420656976,1776436239055,-34092.56675209,7.84e-05,2]
[420656977,1776436239128,-19324.05634671,7.84e-05,2]
[420657000,1776436245081,-920.38129747,7.84e-05,2]
[420657001,1776436245092,-695.7,7.84e-05,2]
[420657002,1776436245103,-7873.48398742,7.84e-05,2]
[420657003,1776436245140,-620.51122382,7.84e-05,2]
[420657004,1776436245307,-16555.36766565,7.84e-05,2]
[420657013,1776436246364,-2148.3,7.84e-05,2]
[420657014,1776436246421,-13903.27529038,7.84e-05,2]
[420657015,1776436246534,-585.22942909,7.84e-05,2]
[420657016,1776436246547,-7708.27190303,7.84e-05,2]
[420657021,1776436284919,2000.26,0.00024658,120]
[420657022,1776436290466,200.0,0.00023786,120]
[420657027,1776436350990,200.0,0.00024462,120]
[420657035,1776436518047,183.0,0.00023867,120]
[420657036,1776436532012,182.0,0.00022609,120]
[420657037,1776436533598,182.0,0.0002374,120]
[420657040,1776436591948,6798.35305508,0.00024,120]
[420657041,1776436607451,159.11,0.000246,120]
[420657050,1776436633340,440.0,0.00024657,120]
[420657054,1776436663291,10000.0,0.00024658,120]
[420657055,1776436675525,10000.0,0.00024658,120]
[420657058,1776436694787,9000.0,0.00024658,120]
[420657059,1776436709176,1013.665,0.00024658,120]
[420657060,1776436710463,200.0,0.00023503,120]
[420657063,1776436788396,5000.0,0.00024,120]
[420657066,1776436830694,200.0,0.00023158,120]
[420657073,1776436950715,200.0,0.00022957,120]
[420657079,1776437002440,160.0,0.00024658,120]
[420657080,1776437007600,5470.25,0.00024658,120]
[420657081,1776437010452,200.0,0.00022293,120]
[420657085,1776437048975,160.0,0.00024658,120]
[420657088,1776437068386,160.0,0.00024658,120]
[420657089,1776437071131,200.0,0.00024477,120]
[420657090,1776437095389,160.0,0.00024658,120]
[420657093,1776437113822,160.0,0.00024658,120]
[420657101,1776437152205,160.0,0.00024658,120]
[420657105,1776437183334,733.1,0.00024658,120]
[420657106,1776437190691,200.0,0.00023785,120]
[420657119,1776437287157,1000.0,0.00024,120]
[420657120,1776437310454,200.0,0.00023261,120]
[420657134,1776437375763,142609.71347844,0.00024567,120]
[420657135,1776437380847,4211.86,0.00024658,120]
[420657217,1776437438999,-5000.0,4.993e-05,2]
[420657218,1776437439008,-5000.0,5.043e-05,2]
[420657219,1776437439022,-253.34812545,5.12e-05,2]
[420657220,1776437439031,-300.0,5.144e-05,2]
[420657221,1776437439041,-179.25,5.4e-05,2]
[420657222,1776437439050,-954.1127056,5.471e-05,2]
[420657223,1776437439059,-438.38,5.6e-05,2]
[420657224,1776437439069,-300.0,5.63e-05,2]
[420657225,1776437439078,-300.0,5.63e-05,2]
[420657226,1776437439088,-300.0,5.63e-05,2]
[420657227,1776437439098,-300.0,5.63e-05,2]
[420657228,1776437439107,-300.0,5.63e-05,2]
[420657230,1776437439116,-300.0,5.63e-05,2]
[420657231,1776437439125,-300.0,5.63e-05,2]
[420657232,1776437439134,-300.0,5.63e-05,2]
[420657233,1776437439146,-300.0,5.63e-05,2]
[420657234,1776437439155,-300.0,5.63e-05,2]
[420657235,1776437439165,-300.0,5.63e-05,2]
[420657236,1776437439175,-300.0,5.63e-05,2]
[420657237,1776437439184,-300.0,5.63e-05,2]
[420657239,1776437439193,-300.0,5.63e-05,2]
[420657241,1776437439202,-300.0,5.63e-05,2]
[420657242,1776437439211,-420.0,5.658e-05,2]
[420657243,1776437439221,-600.0,5.742e-05,2]
[420657244,1776437439229,-587.0,6.224e-05,2]
[420657245,1776437439238,-720.0,6.316e-05,2]
[420657246,1776437439248,-250.0,6.731e-05,2]
[420657247,1776437439257,-823.0,6.847e-05,2]
[420657248,1776437439265,-864.0,6.947e-05,2]
[420657249,1776437439274,-500.0,7e-05,2]
[420657250,1776437439283,-298.95078803,7.12e-05,2]
[420657251,1776437439292,-1439.25,7.2e-05,2]
[420657252,1776437439301,-653.39,7.2e-05,2]
[420657253,1776437439311,-184.0,7.2e-05,2]
[420657254,1776437439320,-184.0,7.2e-05,2]
[420657255,1776437439329,-2209.0,7.2e-05,2]
[420657256,1776437439338,-441.0,7.2e-05,2]
[420657257,1776437439348,-537.6845,7.263e-05,2]
[420657258,1776437439357,-1957.856,7.263e-05,2]
[420657259,1776437439366,-2150.738,7.263e-05,2]
[420657260,1776437439375,-557.5788265,7.318e-05,2]
[420657261,1776437439384,-2030.296672,7.318e-05,2]
[420657262,1776437439393,-578.20924308,7.373e-05,2]
[420657263,1776437439402,-2105.41764886,7.373e-05,2]
[420657264,1776437439411,-599.60298507,7.428e-05,2]
[420657265,1776437439421,-2183.31810187,7.428e-05,2]
[420657266,1776437439430,-629.388,7.438e-05,2]
[420657267,1776437439439,-500.0,7.483e-05,2]
[420657268,1776437439448,-500.0,7.483e-05,2]
[420657269,1776437439458,-500.0,7.483e-05,2]
[420657270,1776437439466,-298.27230045,7.483e-05,2]
[420657271,1776437439475,-485.9895285,7.483e-05,2]
[420657272,1776437439484,-500.0,7.483e-05,2]
[420657273,1776437439494,-167.58996563,7.483e-05,2]
[420657274,1776437439503,-597.51752272,7.483e-05,2]
[420657275,1776437439512,-500.0,7.483e-05,2]
[420657276,1776437439521,-500.0,7.483e-05,2]
[420657277,1776437439531,-500.0,7.483e-05,2]
[420657278,1776437439539,-500.0,7.483e-05,2]
[420657279,1776437439548,-621.78829552,7.483e-05,2]
[420657280,1776437439558,-1884.51754254,7.483e-05,2]
[420657281,1776437439567,-500.0,7.5e-05,2]
[420657282,1776437439576,-162.380719,7.5e-05,2]
[420657283,1776437439586,-151.0,7.5e-05,2]
[420657284,1776437439595,-445.202766,7.5e-05,2]
[420657285,1776437439605,-162.380719,7.5e-05,2]
[420657286,1776437439614,-1729.46801119,7.5e-05,2]
[420657287,1776437439623,-537.6845,7.5e-05,2]
[420657288,1776437439633,-500.0,7.504e-05,2]
[420657289,1776437439642,-500.0,7.504e-05,2]
[420657290,1776437439651,-500.0,7.504e-05,2]
[420657291,1776437439660,-500.0,7.504e-05,2]
[420657292,1776437439671,-500.0,7.504e-05,2]
[420657293,1776437439680,-500.0,7.504e-05,2]
[420657294,1776437439690,-500.0,7.504e-05,2]
[420657295,1776437439699,-500.0,7.504e-05,2]
[420657298,1776437439910,-500.0,7.504e-05,2]
[420657299,1776437439925,-500.0,7.504e-05,2]
[420657300,1776437439935,-500.0,7.504e-05,2]
[420657301,1776437439944,-500.0,7.504e-05,2]
[420657302,1776437439954,-173.20254429,7.504e-05,2]
[420657303,1776437439964,-500.0,7.504e-05,2]
[420657304,1776437439974,-500.0,7.504e-05,2]
[420657305,1776437439985,-500.0,7.504e-05,2]
[420657306,1776437439994,-500.0,7.504e-05,2]
[420657307,1776437440003,-500.0,7.504e-05,2]
[420657308,1776437440013,-500.0,7.504e-05,2]
[420657309,1776437440023,-350.0,7.504e-05,2]
[420657310,1776437440032,-292000.62357206,7.505e-05,2]
[420657311,1776437440042,-2179.07679644,7.505e-05,2]
[420657312,1776437440051,-1152.0,7.531e-05,2]
[420657314,1776437440061,-644.79446246,7.538e-05,2]
[420657315,1776437440071,-257.16976294,7.549e-05,2]
[420657316,1776437440081,-153.0352371,7.573e-05,2]
[420657317,1776437440090,-668.65185757,7.593e-05,2]
[420657318,1776437440099,-302356.7699,7.605e-05,2]
[420657319,1776437440109,-1000.0,7.642e-05,2]
[420657321,1776437440118,-693.3919763,7.648e-05,2]
[420657322,1776437440128,-800.36994545,7.7e-05,2]
[420657323,1776437440137,-2007.04629194,7.7e-05,2]
[420657324,1776437440146,-1797.93982542,7.7e-05,2]
[420657325,1776437440155,-2107.80808516,7.7e-05,2]
[420657326,1776437440164,-719.04747942,7.703e-05,2]
[420657327,1776437440173,-160.0,7.735e-05,2]
[420657328,1776437440183,-745.65223616,7.758e-05,2]
[420657329,1776437440193,-500.0,7.8e-05,2]
[420657330,1776437440202,-2000.0,7.8e-05,2]
[420657331,1776437440211,-2230.315306,7.811e-05,2]
[420657332,1776437440220,-773.2413689,7.813e-05,2]
[420657333,1776437440230,-972.5819056,7.839e-05,2]
[420657334,1776437440239,-1432.0640224,7.839e-05,2]
[420657335,1776437440248,-563.19450799,7.839e-05,2]
[420657336,1776437440257,-2250.52525391,7.839e-05,2]
[420657337,1776437440266,-1609196.36672178,7.84e-05,2]
[420657339,1776437440279,-1079221.05557308,7.84e-05,2]
[420657340,1776437440290,-292.75039468,7.84e-05,2]
[420657341,1776437440299,-801.85129955,7.868e-05,2]
[420657342,1776437440308,-500.0,7.873e-05,2]
[420657343,1776437440319,-500.0,7.873e-05,2]
[420657344,1776437440328,-410.27021249,7.873e-05,2]
[420657345,1776437440338,-831.51979763,7.923e-05,2]
[420657346,1776437440347,-862.28603014,7.978e-05,2]
[420657347,1776437440356,-796.0,8e-05,2]
[420657348,1776437440365,-500.0,8e-05,2]
[420657349,1776437440374,-1000.0,8.031e-05,2]
[420657350,1776437440383,-1000.0,8.031e-05,2]
[420657351,1776437440393,-300.0,8.031e-05,2]
[420657352,1776437440402,-1000.0,8.031e-05,2]
[420657353,1776437440411,-1000.0,8.031e-05,2]
[420657354,1776437440422,-1000.0,8.031e-05,2]
[420657356,1776437440435,-1000.0,8.031e-05,2]
[420657357,1776437440444,-894.19061326,8.033e-05,2]
[420657358,1776437440454,-168.3888056,8.048e-05,2]
[420657359,1776437440463,-151.0,8.048e-05,2]
[420657360,1776437440473,-461.67526834,8.048e-05,2]
[420657361,1776437440482,-557.5788265,8.048e-05,2]
[420657362,1776437440492,-500.0,8.061e-05,2]
[420657363,1776437440501,-500.0,8.061e-05,2]
[420657364,1776437440511,-160.21149199,8.061e-05,2]
[420657365,1776437440520,-500.0,8.061e-05,2]
[420657366,1776437440529,-260.27808809,8.061e-05,2]
[420657367,1776437440538,-500.0,8.061e-05,2]
[420657368,1776437440548,-160.02145969,8.061e-05,2]
[420657369,1776437440558,-500.0,8.061e-05,2]
[420657370,1776437440567,-500.0,8.061e-05,2]
[420657371,1776437440576,-500.0,8.061e-05,2]
[420657372,1776437440586,-500.0,8.061e-05,2]
[420657373,1776437440596,-927.27566595,8.088e-05,2]
[420657374,1776437440607,-308.82,8.1e-05,2]
[420657375,1776437440617,-1957.79249689,8.157e-05,2]
[420657376,1776437440627,-155.0,8.218e-05,2]
[420657377,1776437440636,-221.0,8.219e-05,3]
[420657378,1776437440646,-190.95902683,8.219e-05,2]
[420657379,1776437440655,-275.33870447,8.219e-05,2]
[420657380,1776437440664,-500.0,8.219e-05,2]
[420657381,1776437440674,-500.0,8.219e-05,2]
[420657382,1776437440684,-500.0,8.219e-05,2]
[420657383,1776437440694,-500.0,8.219e-05,2]
[420657384,1776437440703,-508.17391871,8.219e-05,2]
[420657385,1776437440712,-500.0,8.219e-05,2]
[420657386,1776437440722,-1657.65,8.219e-05,2]
[420657387,1776437440731,-263.33,8.219e-05,2]
[420657388,1776437440740,-500.0,8.219e-05,2]
[420657389,1776437440750,-500.0,8.219e-05,2]
[420657390,1776437440759,-510.00796303,8.219e-05,2]
[420657391,1776437440769,-500.0,8.219e-05,2]
[420657392,1776437440779,-500.0,8.219e-05,2]
[420657393,1776437440789,-500.0,8.219e-05,2]
[420657394,1776437440799,-787.39,8.219e-05,2]
[420657395,1776437440808,-500.0,8.219e-05,2]
[420657396,1776437440818,-500.0,8.219e-05,2]
[420657397,1776437440828,-513.47930315,8.219e-05,2]
[420657398,1776437440837,-500.0,8.219e-05,2]
[420657399,1776437440847,-512.11541859,8.219e-05,2]
[420657400,1776437440856,-1390.2324,8.219e-05,2]
[420657401,1776437440865,-155.23,8.219e-05,2]
[420657402,1776437440874,-151.0,8.219e-05,2]
[420657403,1776437440884,-500.0,8.219e-05,2]
[420657404,1776437440894,-568.58,8.219e-05,2]
[420657405,1776437440905,-500.0,8.219e-05,2]
[420657407,1776437440916,-500.0,8.219e-05,2]
[420657408,1776437440926,-962.76,8.219e-05,2]
[420657409,1776437440935,-500.0,8.219e-05,2]
[420657410,1776437440946,-500.0,8.219e-05,2]
[420657411,1776437440956,-2465.1,8.219e-05,2]
[420657413,1776437440967,-578.69175192,8.219e-05,2]
[420657415,1776437440978,-539.31474711,8.219e-05,2]
[420657417,1776437440988,-500.0,8.219e-05,2]
[420657419,1776437440998,-500.0,8.219e-05,2]
[420657421,1776437441008,-355.98,8.219e-05,2]
[420657423,1776437441017,-588.64,8.219e-05,2]
[420657425,1776437441027,-324.78,8.219e-05,2]
[420657427,1776437441040,-722.44,8.219e-05,2]
[420657429,1776437441050,-500.0,8.219e-05,2]
[420657431,1776437441059,-500.0,8.219e-05,2]
[420657433,1776437441069,-500.0,8.219e-05,2]
[420657434,1776437441079,-514.79941422,8.219e-05,2]
[420657436,1776437441089,-693.06,8.219e-05,2]
[420657438,1776437441098,-500.0,8.219e-05,2]
[420657440,1776437441108,-1640.61,8.219e-05,2]
[420657442,1776437441119,-522.14507509,8.219e-05,2]
[420657444,1776437441129,-547.37,8.219e-05,2]
[420657447,1776437441139,-500.0,8.219e-05,2]
[420657448,1776437441150,-500.0,8.219e-05,2]
[420657450,1776437441161,-1747.68,8.219e-05,2]
[420657452,1776437441179,-500.0,8.219e-05,2]
[420657454,1776437441189,-1438.78,8.219e-05,2]
[420657456,1776437441198,-500.0,8.219e-05,2]
[420657458,1776437441208,-511.51403377,8.219e-05,2]
[420657460,1776437441218,-502.7,8.219e-05,2]
[420657462,1776437441227,-500.0,8.219e-05,2]
[420657464,1776437441236,-500.0,8.219e-05,2]
[420657466,1776437441247,-500.0,8.219e-05,2]
[420657468,1776437441257,-537.22,8.219e-05,2]
[420657470,1776437441266,-2990.34,8.219e-05,2]
[420657472,1776437441276,-3754.73,8.219e-05,2]
[420657474,1776437441285,-509.77849533,8.219e-05,2]
[420657476,1776437441294,-325.89260992,8.219e-05,2]
[420657478,1776437441303,-500.0,8.219e-05,2]
[420657480,1776437441313,-500.0,8.219e-05,2]
[420657482,1776437441322,-266.98679502,8.219e-05,2]
[420657484,1776437441331,-500.0,8.219e-05,2]
[420657486,1776437441341,-500.0,8.219e-05,2]
[420657488,1776437441351,-500.0,8.219e-05,2]
[420657490,1776437441362,-593.38,8.219e-05,2]
[420657492,1776437441372,-726.8,8.219e-05,2]
[420657494,1776437441381,-538.06,8.219e-05,2]
[420657496,1776437441391,-566.85,8.219e-05,2]
[420657498,1776437441401,-500.0,8.219e-05,2]
[420657500,1776437441411,-1446.18,8.219e-05,2]
[420657502,1776437441422,-4939.8,8.219e-05,2]
[420657504,1776437441432,-3462.88,8.219e-05,2]
[420657506,1776437441442,-500.0,8.219e-05,2]
[420657508,1776437441452,-713.44,8.219e-05,2]
[420657510,1776437441462,-583.22522745,8.219e-05,2]
[420657512,1776437441472,-631.79222525,8.219e-05,2]
[420657514,1776437441481,-4528.66,8.219e-05,2]
[420657516,1776437441491,-723.31,8.219e-05,2]
[420657518,1776437441501,-500.0,8.219e-05,2]
[420657521,1776437441512,-500.0,8.219e-05,2]
[420657523,1776437441521,-2613.51,8.219e-05,2]
[420657525,1776437441531,-500.0,8.219e-05,2]
[420657527,1776437441540,-500.0,8.219e-05,2]
[420657528,1776437441550,-500.0,8.219e-05,2]
[420657530,1776437441559,-3404.94,8.219e-05,2]
[420657532,1776437441568,-202.41127917,8.219e-05,2]
[420657534,1776437441578,-7444.33,8.219e-05,2]
[420657536,1776437441587,-500.0,8.219e-05,2]
[420657538,1776437441596,-500.0,8.219e-05,2]
[420657540,1776437441606,-588.56,8.219e-05,2]
[420657542,1776437441616,-529.29199914,8.219e-05,2]
[420657544,1776437441626,-628.83,8.219e-05,2]
[420657546,1776437441637,-1688.16,8.219e-05,2]
[420657548,1776437441649,-800.75,8.219e-05,2]
[420657550,1776437441659,-512.14549658,8.219e-05,2]
[420657552,1776437441672,-416.01259601,8.219e-05,2]
[420657554,1776437441682,-2658.5,8.219e-05,2]
[420657556,1776437441691,-500.0,8.219e-05,2]
[420657558,1776437441701,-507.25690873,8.219e-05,2]
[420657560,1776437441710,-500.0,8.219e-05,2]
[420657562,1776437441720,-931.2,8.219e-05,2]
[420657563,1776437441729,-1910.09,8.219e-05,2]
[420657564,1776437441739,-781.85,8.219e-05,2]
[420657565,1776437441748,-2313.23,8.219e-05,2]
[420657566,1776437441758,-513.3521708,8.219e-05,2]
[420657567,1776437441768,-2748.1,8.219e-05,2]
[420657568,1776437441777,-745.48,8.219e-05,2]
[420657569,1776437441787,-500.0,8.219e-05,2]
[420657570,1776437441796,-150.35405283,8.219e-05,2]
[420657571,1776437441805,-4218.51,8.219e-05,2]
[420657572,1776437441815,-509.67,8.219e-05,2]
[420657573,1776437441825,-500.0,8.219e-05,2]
[420657574,1776437441834,-4061.92,8.219e-05,2]
[420657575,1776437441844,-2381.15,8.219e-05,2]
[420657576,1776437441854,-691.8,8.219e-05,2]
[420657577,1776437441864,-500.0,8.219e-05,2]
[420657578,1776437441874,-500.0,8.219e-05,2]
[420657579,1776437441883,-507.66573243,8.219e-05,2]
[420657580,1776437441893,-500.0,8.219e-05,2]
[420657581,1776437441903,-675.04,8.219e-05,2]
[420657582,1776437441912,-565.15,8.219e-05,2]
[420657583,1776437441923,-500.0,8.219e-05,2]
[420657584,1776437441934,-537.54426901,8.219e-05,2]
[420657585,1776437441943,-510.32049362,8.219e-05,2]
[420657586,1776437441953,-7701.99,8.219e-05,2]
[420657587,1776437441962,-500.0,8.219e-05,2]
[420657588,1776437441973,-1301.09,8.219e-05,2]
[420657589,1776437441983,-500.0,8.219e-05,2]
[420657590,1776437441992,-506.60977076,8.219e-05,2]
[420657591,1776437442002,-815.78,8.219e-05,2]
[420657592,1776437442012,-500.0,8.219e-05,2]
[420657593,1776437442021,-512.63155127,8.219e-05,2]
[420657594,1776437442031,-4306.99,8.219e-05,2]
[420657595,1776437442040,-500.0,8.219e-05,2]
[420657596,1776437442050,-500.0,8.219e-05,2]
[420657597,1776437442059,-500.0,8.219e-05,2]
[420657598,1776437442069,-509.50128032,8.219e-05,2]
[420657599,1776437442079,-25740.16,8.219e-05,2]
[420657600,1776437442088,-500.0,8.219e-05,2]
[420657601,1776437442097,-500.0,8.219e-05,2]
[420657602,1776437442107,-1070.79,8.219e-05,2]
[420657603,1776437442117,-1464.13,8.219e-05,2]
[420657604,1776437442127,-500.0,8.219e-05,2]
[420657605,1776437442137,-5547.26,8.219e-05,2]
[420657606,1776437442150,-1329.08,8.219e-05,2]
[420657607,1776437442160,-3006.38,8.219e-05,2]
[420657608,1776437442170,-500.0,8.219e-05,2]
[420657609,1776437442179,-3228.24,8.219e-05,2]
[420657610,1776437442189,-500.0,8.219e-05,2]
[420657611,1776437442200,-509.07458441,8.219e-05,2]
[420657612,1776437442210,-510.72557999,8.219e-05,2]
[420657613,1776437442220,-13016.44,8.219e-05,2]
[420657614,1776437442230,-500.0,8.219e-05,2]
[420657615,1776437442239,-2167.21,8.219e-05,2]
[420657616,1776437442248,-2673.8,8.219e-05,2]
[420657617,1776437442259,-500.0,8.219e-05,2]
[420657618,1776437442268,-500.0,8.219e-05,2]
[420657619,1776437442278,-5957.22,8.219e-05,2]
[420657620,1776437442287,-753.9,8.219e-05,2]
[420657621,1776437442296,-1115.96,8.219e-05,2]
[420657622,1776437442305,-4742.33,8.219e-05,2]
[420657623,1776437442315,-7327.37,8.219e-05,2]
[420657624,1776437442326,-497.13191673,8.219e-05,2]
[420657625,1776437442341,-522.79556759,8.219e-05,2]
[420657626,1776437442350,-511.55069789,8.219e-05,2]
[420657627,1776437442359,-560.74,8.219e-05,2]
[420657628,1776437442370,-500.0,8.219e-05,2]
[420657629,1776437442380,-500.0,8.219e-05,2]
[420657630,1776437442390,-1613.0,8.284e-05,2]
[420657631,1776437442399,-2000.0,8.3e-05,3]
[420657632,1776437442410,-286.8114394,8.355e-05,2]
[420657633,1776437442421,-2312.83697232,8.359e-05,2]
[420657634,1776437442430,-1998.28537943,8.4e-05,2]
[420657635,1776437442440,-1000.0,8.406e-05,2]
[420657636,1776437442452,-244.0,8.406e-05,2]
[420657637,1776437442461,-502.24424742,8.421e-05,2]
[420657638,1776437442470,-1000.0,8.421e-05,2]
[420657639,1776437442480,-455.5567169,8.44e-05,2]
[420657640,1776437442491,-500.0,8.493e-05,2]
[420657641,1776437442501,-500.0,8.493e-05,2]
[420657642,1776437442510,-500.0,8.493e-05,2]
[420657643,1776437442519,-500.0,8.493e-05,2]
[420657644,1776437442531,-1657.65,8.493e-05,2]
[420657645,1776437442541,-500.0,8.493e-05,2]
[420657646,1776437442551,-500.0,8.493e-05,2]
[420657647,1776437442560,-500.0,8.493e-05,2]
[420657648,1776437442570,-173.07523236,8.493e-05,2]
[420657649,1776437442579,-500.0,8.493e-05,2]
[420657650,1776437442588,-787.39,8.493e-05,2]
[420657651,1776437442598,-177.84582656,8.493e-05,2]
[420657652,1776437442607,-500.0,8.493e-05,2]
[420657653,1776437442616,-643.12526643,8.493e-05,2]
[420657654,1776437442625,-1390.2324,8.493e-05,2]
[420657655,1776437442635,-500.0,8.493e-05,2]
[420657656,1776437442645,-568.58,8.493e-05,2]
[420657657,1776437442654,-500.0,8.493e-05,2]
[420657658,1776437442664,-962.76,8.493e-05,2]
[420657659,1776437442674,-500.0,8.493e-05,2]
[420657660,1776437442683,-500.0,8.493e-05,2]
[420657661,1776437442693,-2465.1,8.493e-05,2]
[420657662,1776437442704,-500.0,8.493e-05,2]
[420657663,1776437442714,-500.0,8.493e-05,2]
[420657664,1776437442724,-588.64,8.493e-05,2]
[420657665,1776437442735,-722.44,8.493e-05,2]
[420657666,1776437442744,-500.0,8.493e-05,2]
[420657667,1776437442754,-500.0,8.493e-05,2]
[420657669,1776437442763,-693.06,8.493e-05,2]
[420657670,1776437442773,-500.0,8.493e-05,2]
[420657671,1776437442782,-1640.61,8.493e-05,2]
[420657672,1776437442792,-547.37,8.493e-05,2]
[420657673,1776437442801,-378.07630601,8.493e-05,2]
[420657674,1776437442811,-500.0,8.493e-05,2]
[420657676,1776437442820,-1747.68,8.493e-05,2]
[420657678,1776437442830,-500.0,8.493e-05,2]
[420657680,1776437442839,-1438.78,8.493e-05,2]
[420657681,1776437442849,-419.25,8.493e-05,2]
[420657682,1776437442858,-502.7,8.493e-05,2]
[420657684,1776437442868,-500.0,8.493e-05,2]
[420657685,1776437442877,-500.0,8.493e-05,2]
[420657687,1776437442887,-500.0,8.493e-05,2]
[420657688,1776437442897,-537.22,8.493e-05,2]
[420657689,1776437442907,-2990.34,8.493e-05,2]
[420657690,1776437442916,-3754.73,8.493e-05,2]
[420657691,1776437442926,-213.80053214,8.493e-05,2]
[420657692,1776437442935,-500.0,8.493e-05,2]
[420657693,1776437442944,-508.71990687,8.493e-05,2]
[420657694,1776437442954,-593.38,8.493e-05,2]
[420657695,1776437442963,-726.8,8.493e-05,2]
[420657696,1776437442972,-538.06,8.493e-05,2]
[420657697,1776437442981,-566.85,8.493e-05,2]
[420657698,1776437442990,-500.0,8.493e-05,2]
[420657699,1776437442999,-1446.18,8.493e-05,2]
[420657700,1776437443009,-4939.8,8.493e-05,2]
[420657701,1776437443019,-3462.88,8.493e-05,2]
[420657702,1776437443029,-713.44,8.493e-05,2]
[420657703,1776437443040,-4528.66,8.493e-05,2]
[420657704,1776437443049,-723.31,8.493e-05,2]
[420657705,1776437443059,-386.89680739,8.493e-05,2]
[420657706,1776437443069,-500.0,8.493e-05,2]
[420657707,1776437443078,-2613.51,8.493e-05,2]
[420657708,1776437443087,-500.0,8.493e-05,2]
[420657709,1776437443097,-500.0,8.493e-05,2]
[420657710,1776437443106,-500.0,8.493e-05,2]
[420657711,1776437443115,-3404.94,8.493e-05,2]
[420657712,1776437443125,-7444.33,8.493e-05,2]
[420657713,1776437443134,-500.0,8.493e-05,2]
[420657714,1776437443144,-628.83,8.493e-05,2]
[420657715,1776437443153,-1688.16,8.493e-05,2]
[420657716,1776437443163,-800.75,8.493e-05,2]
[420657717,1776437443172,-2658.5,8.493e-05,2]
[420657718,1776437443181,-500.0,8.493e-05,2]
[420657719,1776437443191,-500.0,8.493e-05,2]